fUSD/lending_fUSD_20251031
["ID","MTS","AMOUNT","RATE_DAILY","PERIOD"]
[392770925,1761937278308,2500.0,0.000149,3]
[392771033,1761937296807,2500.0,0.00014891,3]
[392771035,1761937315525,2500.0,0.00014882,3]
[392771036,1761937329737,-1862.11,0.00014006,2]
[392771037,1761937334213,2500.0,0.00014874,3]
[392771038,1761937352939,2500.0,0.00014865,3]
[392771039,1761937369959,-166.5,0.00014339,2]
[392771041,1761937436765,2500.0,0.00014856,3]
[392771042,1761937455397,2500.0,0.00014847,3]
[392771044,1761937474070,2500.0,0.00014838,3]
[392771045,1761937492721,2179.2476193,0.0001483,3]
[392771046,1761937492746,320.7523807,0.0001483,3]
[392771048,1761937510129,150.0,0.00013488,2]
[392771049,1761937510263,16.5,0.00013488,2]
[392771050,1761937510289,133.5,0.00013488,2]
[392771051,1761937511395,2500.0,0.00014821,3]
[392771053,1761937517160,150.0,0.00013488,2]
[392771054,1761937530065,2500.0,0.00014812,3]
[392771056,1761937536542,500.0,0.00014999,5]
[392771057,1761937536862,500.0,0.00014999,5]
[392771058,1761937537212,500.0,0.00014999,5]
[392771059,1761937537488,500.0,0.00014999,5]
[392771060,1761937537813,500.0,0.00014999,5]
[392771061,1761937538129,500.0,0.00014999,5]
[392771062,1761937538440,500.0,0.00014999,5]
[392771063,1761937538799,577.25970673,0.00014999,5]
[392771064,1761937548744,2500.0,0.00014803,3]
[392771065,1761937550619,4405.7789565,0.00013887,2]
[392771066,1761937550643,1862.11,0.00013887,2]
[392771067,1761937550668,1862.11,0.00013887,2]
[392771068,1761937550694,462.9410435,0.00013887,2]
[392771069,1761937567380,2500.0,0.00014794,3]
[392771070,1761937586232,2500.0,0.00014786,3]
[392771071,1761937604483,2500.0,0.00014777,3]
[392771073,1761937623139,2500.0,0.00014768,3]
[392771074,1761937641819,2500.0,0.00014759,3]
[392771075,1761937660550,2500.0,0.0001475,3]
[392771076,1761937679252,2500.0,0.00014742,3]
[392771078,1761937684095,200.0,0.00013896,2]
[392771079,1761937685232,166.66,0.00013699,2]
[392771080,1761937685476,166.66,0.00013877,2]
[392771081,1761937697902,2500.0,0.00014733,3]
[392771082,1761937716613,2500.0,0.00014724,3]
[392771083,1761937733043,-166.66,0.00014055,2]
[392771084,1761937733068,-166.66,0.00014234,2]
[392771085,1761937733095,-166.66,0.00014412,2]
[392771086,1761937733121,-166.66,0.0001459,2]
[392771087,1761937733145,-1402.17805724,0.00014602,2]
[392771088,1761937733172,-863.62399737,0.00014671,2]
[392771089,1761937733196,-166.66666666,0.00014673,2]
[392771090,1761937733218,-216.9840124,0.0001476,2]
[392771091,1761937733242,-1200.0,0.00014779,2]
[392771092,1761937733265,-300.0,0.00014779,2]
[392771093,1761937733289,-5888.0,0.0001478,2]
[392771094,1761937733313,-176.77866494,0.0001479,2]
[392771095,1761937733336,-386.0,0.000148,2]
[392771096,1761937733360,-300.0,0.00014816,2]
[392771097,1761937733384,-176.77866491,0.00014818,2]
[392771098,1761937733412,-500.0,0.0001484,2]
[392771099,1761937733436,-1880.17087,0.0001484,2]
[392771100,1761937733461,-176.77866491,0.00014845,2]
[392771101,1761937733486,-150.0,0.00014872,2]
[392771102,1761937733510,-176.77866491,0.00014873,2]
[392771103,1761937733534,-500.0,0.00014873,2]
[392771104,1761937733556,-461.489323,0.00014873,2]
[392771105,1761937733580,-500.0,0.00014873,2]
[392771106,1761937733602,-500.0,0.00014873,2]
[392771107,1761937733626,-473.21088675,0.00014873,2]
[392771108,1761937733648,-425.17065822,0.00014873,2]
[392771109,1761937733671,-500.0,0.00014873,2]
[392771110,1761937733695,-500.0,0.00014873,2]
[392771111,1761937733718,-604.79958496,0.00014873,2]
[392771112,1761937733740,-500.0,0.00014873,2]
[392771113,1761937733763,-500.0,0.00014873,2]
[392771114,1761937733785,-500.0,0.00014873,2]
[392771115,1761937733808,-500.0,0.00014873,2]
[392771116,1761937733833,-200.0,0.0001488,2]
[392771117,1761937733856,-151.0,0.00014881,2]
[392771118,1761937733882,-223.98226649,0.00014881,2]
[392771119,1761937733906,-151.0,0.00014881,2]
[392771120,1761937733930,-200.0,0.00014881,2]
[392771121,1761937733955,-590.56112855,0.00014881,2]
[392771122,1761937733979,-500.0,0.00014881,2]
[392771123,1761937734005,-500.0,0.00014881,2]
[392771124,1761937734029,-500.0,0.00014881,2]
[392771125,1761937734054,-500.0,0.00014881,2]
[392771126,1761937734090,-574.12855637,0.00014881,2]
[392771127,1761937734116,-500.0,0.00014881,2]
[392771128,1761937734141,-500.0,0.00014881,2]
[392771129,1761937734167,-500.0,0.00014881,2]
[392771130,1761937734194,-500.0,0.00014881,2]
[392771131,1761937734221,-500.0,0.00014881,2]
[392771132,1761937734247,-521.39079377,0.00014881,2]
[392771133,1761937734272,-209.40437684,0.00014881,2]
[392771134,1761937734298,-250.0,0.00014881,2]
[392771135,1761937734322,-151.0,0.00014881,2]
[392771136,1761937734346,-250.0,0.00014881,2]
[392771137,1761937734370,-151.0,0.00014881,2]
[392771138,1761937734393,-250.0,0.00014881,2]
[392771139,1761937734417,-151.0,0.00014881,2]
[392771140,1761937734440,-250.0,0.00014881,2]
[392771141,1761937734463,-274.39550876,0.00014881,2]
[392771142,1761937734489,-263.15644297,0.00014881,2]
[392771143,1761937734513,-2057.03038292,0.00014889,2]
[392771144,1761937734542,-500.0,0.00014889,2]
[392771145,1761937734568,-500.0,0.00014889,2]
[392771146,1761937734593,-500.0,0.00014889,2]
[392771147,1761937734617,-500.0,0.00014889,2]
[392771148,1761937734642,-500.0,0.00014889,2]
[392771149,1761937734668,-438.82920932,0.00014889,2]
[392771150,1761937734694,-348.60390342,0.00014889,2]
[392771151,1761937734716,-398.0278,0.0001489,2]
[392771152,1761937734738,-5169.5029,0.0001489,2]
[392771153,1761937734763,-124313.7086,0.0001489,2]
[392771154,1761937734786,-454.7705,0.0001489,2]
[392771155,1761937734809,-2500.0,0.0001489,2]
[392771156,1761937734832,-2196.9277,0.00014891,2]
[392771157,1761937734856,-1922.66195997,0.00014891,2]
[392771158,1761937734880,-589.58783126,0.00014891,2]
[392771159,1761937734906,-1922.66195992,0.00014892,2]
[392771160,1761937734929,-589.58783125,0.00014892,2]
[392771161,1761937734953,-1922.66195992,0.00014893,2]
[392771162,1761937734978,-589.58783125,0.00014894,2]
[392771163,1761937735208,-1922.66195992,0.00014894,2]
[392771164,1761937735233,-589.58783125,0.00014895,2]
[392771165,1761937735257,-1922.66195992,0.00014895,2]
[392771166,1761937735282,-1922.66195992,0.00014896,2]
[392771167,1761937735305,-589.58783125,0.00014896,2]
[392771168,1761937735329,-158.07,0.00014897,2]
[392771169,1761937735353,-1922.66195992,0.00014897,2]
[392771170,1761937735376,-589.58783125,0.00014897,2]
[392771171,1761937735399,-1922.66195992,0.00014898,2]
[392771172,1761937735422,-589.58783125,0.00014899,2]
[392771173,1761937735445,-1922.66195992,0.00014899,2]
[392771174,1761937735469,-165.44942246,0.000149,2]
[392771175,1761937735496,-1922.66195992,0.000149,2]
[392771176,1761937735521,-589.58783125,0.000149,2]
[392771177,1761937735543,-286.97197464,0.000149,2]
[392771178,1761937735569,-176.77866491,0.000149,2]
[392771179,1761937735592,-166.5,0.0001493,2]
[392771180,1761937735620,-5888.0,0.00014935,2]
[392771181,1761937735642,-166.521,0.0001494,2]
[392771182,1761937735664,-329.46,0.00014949,2]
[392771183,1761937735690,-313.7,0.00014949,2]
[392771184,1761937735715,-2232.0,0.00014959,2]
[392771185,1761937735740,-1852.02,0.00014969,2]
[392771186,1761937735765,-3001.363,0.0001497,2]
[392771187,1761937735789,-500.0,0.00014973,2]
[392771188,1761937735812,-526.40805025,0.00014973,2]
[392771189,1761937735834,-500.0,0.00014973,2]
[392771190,1761937735856,-312.1727886,0.00014973,2]
[392771191,1761937735880,-500.0,0.00014973,2]
[392771192,1761937735904,-500.0,0.00014973,2]
[392771193,1761937735931,-500.0,0.00014973,2]
[392771194,1761937735954,-500.0,0.00014973,2]
[392771195,1761937735978,-314.79,0.00014973,2]
[392771196,1761937736003,-500.0,0.00014973,2]
[392771197,1761937736027,-500.0,0.00014973,2]
[392771198,1761937736049,-504.12619354,0.00014973,2]
[392771199,1761937736074,-510.33341494,0.00014973,2]
[392771200,1761937736097,-500.0,0.00014973,2]
[392771201,1761937736120,-500.0,0.00014973,2]
[392771202,1761937736147,-186.10371491,0.00014973,2]
[392771203,1761937736171,-500.0,0.00014973,2]
[392771204,1761937736195,-500.0,0.00014973,2]
[392771205,1761937736219,-500.0,0.00014973,2]
[392771206,1761937736243,-500.0,0.00014973,2]
[392771207,1761937736269,-1880.17088,0.0001498,2]
[392771208,1761937736293,-46843.028031,0.00014984,2]
[392771209,1761937736318,-150.0,0.00014986,2]
[392771210,1761937736342,-151.0,0.00014988,2]
[392771211,1761937736368,-500.0,0.00014989,2]
[392771212,1761937736392,-500.0,0.00014989,2]
[392771213,1761937736415,-500.0,0.00014989,2]
[392771214,1761937736440,-500.0,0.00014989,2]
[392771215,1761937736464,-500.0,0.00014989,2]
[392771216,1761937736489,-500.0,0.00014989,2]
[392771217,1761937736514,-559.93545485,0.00014989,2]
[392771218,1761937736540,-500.0,0.00014989,2]
[392771219,1761937736564,-500.0,0.00014989,2]
[392771220,1761937736593,-179.98397912,0.0001499,2]
[392771221,1761937736616,-500.0,0.0001499,2]
[392771222,1761937736638,-500.0,0.0001499,2]
[392771223,1761937736664,-500.0,0.0001499,2]
[392771224,1761937736689,-500.0,0.0001499,2]
[392771225,1761937736712,-500.0,0.0001499,2]
[392771226,1761937736735,-509.97586662,0.0001499,2]
[392771227,1761937736759,-500.0,0.0001499,2]
[392771228,1761937736784,-500.0,0.0001499,2]
[392771229,1761937736809,-500.0,0.0001499,2]
[392771230,1761937736833,-500.0,0.0001499,2]
[392771231,1761937736856,-500.0,0.0001499,2]
[392771232,1761937736880,-233.2,0.0001499,2]
[392771233,1761937736906,-500.0,0.0001499,2]
[392771234,1761937736930,-500.0,0.0001499,2]
[392771235,1761937736954,-500.0,0.0001499,2]
[392771236,1761937736977,-230.45,0.0001499,2]
[392771237,1761937737000,-500.0,0.0001499,2]
[392771238,1761937737023,-500.0,0.0001499,2]
[392771239,1761937737046,-500.0,0.0001499,2]
[392771240,1761937737071,-500.0,0.0001499,2]
[392771241,1761937737095,-541.2,0.0001499,2]
[392771242,1761937737118,-500.0,0.0001499,2]
[392771243,1761937737142,-150.0,0.0001499,2]
[392771244,1761937737166,-150.0,0.0001499,2]
[392771245,1761937737189,-150.0,0.0001499,2]
[392771246,1761937737214,-500.0,0.0001499,2]
[392771247,1761937737237,-571.1,0.0001499,2]
[392771248,1761937737261,-500.0,0.0001499,2]
[392771249,1761937737284,-508.68908794,0.0001499,2]
[392771250,1761937737307,-500.0,0.0001499,2]
[392771251,1761937737330,-500.0,0.0001499,2]
[392771252,1761937737354,-500.0,0.0001499,2]
[392771253,1761937737376,-500.0,0.0001499,2]
[392771254,1761937737399,-500.0,0.0001499,2]
[392771255,1761937737422,-500.0,0.0001499,2]
[392771256,1761937737445,-500.0,0.0001499,2]
[392771257,1761937737469,-500.0,0.0001499,2]
[392771258,1761937737494,-500.0,0.0001499,2]
[392771259,1761937737517,-500.0,0.0001499,2]
[392771260,1761937737540,-500.0,0.0001499,2]
[392771261,1761937737562,-500.0,0.0001499,2]
[392771262,1761937737585,-500.0,0.0001499,2]
[392771263,1761937737607,-150.0,0.0001499,2]
[392771264,1761937737630,-500.0,0.0001499,2]
[392771265,1761937737654,-755.0,0.0001499,2]
[392771266,1761937737676,-207.37525067,0.0001499,2]
[392771267,1761937737699,-150.0,0.0001499,2]
[392771268,1761937737722,-150.0,0.0001499,2]
[392771269,1761937737747,-200.0,0.0001499,2]
[392771270,1761937737969,-500.0,0.0001499,2]
[392771271,1761937737993,-500.0,0.0001499,2]
[392771272,1761937738017,-500.0,0.0001499,2]
[392771273,1761937738041,-500.0,0.0001499,2]
[392771274,1761937738064,-500.0,0.0001499,2]
[392771275,1761937738087,-500.0,0.0001499,2]
[392771276,1761937738109,-463.85825871,0.0001499,2]
[392771277,1761937738131,-155.667,0.0001499,2]
[392771278,1761937738153,-288.25603492,0.0001499,2]
[392771279,1761937738176,-1170.6,0.0001499,2]
[392771280,1761937738199,-980.01,0.0001499,2]
[392771281,1761937738222,-980.01,0.0001499,2]
[392771282,1761937738244,-980.01,0.0001499,2]
[392771283,1761937738267,-980.01,0.0001499,2]
[392771284,1761937738290,-980.01,0.0001499,2]
[392771285,1761937738313,-980.01,0.0001499,2]
[392771286,1761937738334,-638.36998471,0.0001499,2]
[392771287,1761937738357,-500.0,0.0001499,2]
[392771288,1761937738379,-204.40463205,0.0001499,2]
[392771289,1761937738401,-500.0,0.0001499,2]
[392771290,1761937738423,-500.0,0.0001499,2]
[392771291,1761937738446,-500.0,0.0001499,2]
[392771292,1761937738469,-500.0,0.0001499,2]
[392771293,1761937738493,-351.56346391,0.0001499,2]
[392771294,1761937738516,-150.0,0.0001499,2]
[392771295,1761937738539,-150.0,0.0001499,2]
[392771296,1761937738563,-150.0,0.0001499,2]
[392771297,1761937738585,-150.0,0.0001499,2]
[392771298,1761937738607,-199.09509663,0.0001499,2]
[392771299,1761937738628,-500.0,0.0001499,2]
[392771300,1761937738650,-500.0,0.0001499,2]
[392771301,1761937738672,-2628.0,0.00014991,2]
[392771302,1761937738694,-1220566.04982256,0.00014991,2]
[392771303,1761937738717,-264.6300775,0.00014991,2]
[392771304,1761937738740,-1332.5391745,0.00014991,2]
[392771305,1761937738763,-13589.4180164,0.00014991,2]
[392771306,1761937738786,-200.0,0.00014991,2]
[392771307,1761937738810,-36604.9717215,0.00014991,2]
[392771308,1761937738833,-200.0,0.00014991,2]
[392771309,1761937738856,-12842.0479127,0.00014991,2]
[392771310,1761937738880,-200.0,0.00014991,2]
[392771311,1761937738905,-500.0,0.00014998,2]
[392771312,1761937738931,-980.01,0.00014998,2]
[392771313,1761937738954,-167651.97835242,0.00014999,2]
[392771314,1761937738980,-500.0,0.00014999,2]
[392771315,1761937739002,-500.0,0.00014999,2]
[392771316,1761937739024,-500.0,0.00014999,2]
[392771317,1761937739048,-500.0,0.00014999,2]
[392771318,1761937739071,-500.0,0.00014999,2]
[392771319,1761937739094,-500.0,0.00014999,2]
[392771320,1761937739116,-483.04510273,0.00014999,2]
[392771321,1761937739139,-500.0,0.00014999,2]
[392771322,1761937739172,-500.0,0.00014999,2]
[392771323,1761937739213,-500.0,0.00014999,2]
[392771324,1761937739251,-500.0,0.00014999,2]
[392771325,1761937739295,-500.0,0.00014999,2]
[392771326,1761937739336,-500.0,0.00014999,2]
[392771327,1761937739376,-500.0,0.00014999,2]
[392771328,1761937739413,-500.0,0.00014999,2]
[392771329,1761937739448,-500.0,0.00014999,2]
[392771330,1761937739491,-500.0,0.00014999,2]
[392771331,1761937739525,-500.0,0.00014999,2]
[392771332,1761937739563,-500.0,0.00014999,2]
[392771333,1761937739603,-500.0,0.00014999,2]
[392771334,1761937739640,-513.3628881,0.00014999,2]
[392771335,1761937739675,-980.01,0.00014999,2]
[392771336,1761937739710,-980.01,0.00014999,2]
[392771337,1761937739745,-980.01,0.00014999,2]
[392771338,1761937739781,-980.01,0.00014999,2]
[392771339,1761937739819,-980.01,0.00014999,2]
[392771340,1761937739855,-980.01,0.00014999,2]
[392771341,1761937739891,-980.01,0.00014999,2]
[392771342,1761937739927,-980.01,0.00014999,2]
[392771343,1761937739963,-980.01,0.00014999,2]
[392771344,1761937739997,-980.01,0.00014999,2]
[392771345,1761937740034,-980.01,0.00014999,2]
[392771346,1761937740072,-980.01,0.00014999,2]
[392771347,1761937740108,-980.01,0.00014999,2]
[392771348,1761937740144,-980.01,0.00014999,2]
[392771349,1761937740184,-980.01,0.00014999,2]
[392771350,1761937740220,-980.01,0.00014999,2]
[392771351,1761937740260,-980.14,0.00014999,2]
[392771352,1761937740295,-671.66837628,0.00014999,2]
[392771353,1761937740331,-623665.47883751,0.00015,2]
[392771354,1761937740364,-861.22399573,0.00015,2]
[392771355,1761937740397,-500.0,0.00015,2]
[392771356,1761937740429,-158.08720057,0.00015,2]
[392771357,1761937740466,-2578738.64624118,0.00015,2]
[392771358,1761937741790,2500.0,0.00014715,3]
[392771359,1761937753990,2500.0,0.00014706,3]
[392771361,1761937758758,513.6211348,0.00015,3]
[392771362,1761937772992,2500.0,0.00014698,3]
[392771363,1761937792015,2500.0,0.00014689,3]
[392771364,1761937810942,2500.0,0.0001468,3]
[392771365,1761937829602,2500.0,0.00014671,3]
[392771372,1761937832230,-504.88989561,0.00014891,2]
[392771373,1761937832279,-3318.315,0.00014891,2]
[392771374,1761937832290,-294.5086,0.00014891,2]
[392771375,1761937832301,-882.28650439,0.00014891,2]
[392771376,1761937832311,-419.01349561,0.000149,2]
[392771377,1761937832322,-1680.42102643,0.000149,2]
[392771378,1761937832331,-191.31464976,0.000149,2]
[392771379,1761937832340,-120.26432381,0.00014973,2]
[392771381,1761937832372,-263.27827686,0.00014973,2]
[392771382,1761937832395,-116.45739933,0.00014973,2]
[392771383,1761937832405,-500.0,0.00014973,2]
[392771384,1761937832414,-491.54260067,0.00014973,2]
[392771385,1761937832426,-8.45739933,0.00014973,2]
[392771386,1761937832435,-389.85802715,0.00014983,2]
[392771387,1761937832446,-110.14197285,0.00014983,2]
[392771388,1761937832455,-1835.2365,0.00014986,2]
[392771389,1761937832465,-153.0,0.00014989,2]
[392771390,1761937832475,-300.0,0.00014989,2]
[392771391,1761937832485,-500.0,0.0001499,2]
[392771393,1761937832495,-500.0,0.0001499,2]
[392771394,1761937832504,-500.0,0.0001499,2]
[392771396,1761937832516,-500.0,0.0001499,2]
[392771398,1761937832526,-500.0,0.0001499,2]
[392771400,1761937832536,-500.0,0.0001499,2]
[392771402,1761937832546,-501.36,0.0001499,2]
[392771404,1761937832555,-500.0,0.0001499,2]
[392771407,1761937832567,-500.0,0.0001499,2]
[392771408,1761937832576,-500.0,0.0001499,2]
[392771411,1761937832587,-500.0,0.0001499,2]
[392771413,1761937832596,-500.0,0.0001499,2]
[392771414,1761937832606,-500.0,0.0001499,2]
[392771416,1761937832615,-201.79077321,0.0001499,2]
[392771417,1761937832625,-201.79077321,0.0001499,2]
[392771418,1761937832636,-500.0,0.0001499,2]
[392771419,1761937832645,-500.0,0.0001499,2]
[392771421,1761937832655,-340.10572185,0.00014999,2]
[392771423,1761937832664,-500.0,0.00014999,2]
[392771425,1761937832673,-500.0,0.00014999,2]
[392771427,1761937832683,-636.52589726,0.00014999,2]
[392771429,1761937832692,-323587.22812094,0.00015,2]
[392771433,1761937832728,-56689.20477656,0.00015,2]
[392771440,1761937832756,-565.39824315,0.00015,2]
[392771598,1761937838143,-1000.0,0.00015,2]
[392771599,1761937838183,-7723.9337847,0.00015,2]
[392771600,1761937838195,-2193.0,0.00015,2]
[392771601,1761937838208,-2170.0481726,0.00015,2]
[392771602,1761937838228,-3290.0868,0.00015,2]
[392771603,1761937838270,-2200.0,0.00015,2]
[392771604,1761937838281,-1104.3042,0.00015,2]
[392771605,1761937838310,-22020.0,0.00015,2]
[392771606,1761937838370,-500.0,0.00014999,2]
[392771607,1761937838381,-500.0,0.00014999,2]
[392771608,1761937838391,-6717241.76758434,0.00015,2]
[392771609,1761937838403,-19556.14877359,0.00015,2]
[392771610,1761937838416,-7496.92508313,0.00015,2]
[392771613,1761937838427,-38213.58172906,0.00015,2]
[392771615,1761937838439,-38785.97770391,0.00015,2]
[392771617,1761937838450,-18932.11591891,0.00015,2]
[392771626,1761937840219,-311.98467859,0.00014999,2]
[392771627,1761937840231,-156.31992121,0.00014999,2]
[392771628,1761937840241,-159.03952547,0.00014999,2]
[392771629,1761937840251,-209.72717387,0.00014999,2]
[392771630,1761937840360,-290.27282613,0.00014999,2]
[392771631,1761937840369,-500.0,0.00014999,2]
[392771632,1761937840379,-500.0,0.00014999,2]
[392771633,1761937840388,-366.02471559,0.00014999,2]
[392771634,1761937840397,-321.78469258,0.00014999,2]
[392771635,1761937840408,-4.75188623,0.00014999,2]
[392771636,1761937840418,-1469.30882332,0.00015,2]
[392771637,1761937840429,-5147.6253852,0.00015,2]
[392771638,1761937840440,-2216.214,0.00015,2]
[392771639,1761937840451,-11000.0,0.00015,2]
[392771640,1761937840470,-3333.88643099,0.00015,2]
[392771641,1761937840481,-18636.09088768,0.00015,2]
[392771642,1761937840493,-4862.5,0.00015,2]
[392771643,1761937840516,-17332.93729912,0.00015,2]
[392771644,1761937840632,-4139.83481543,0.00015,2]
[392771645,1761937840643,-427.7179492,0.00015,2]
[392771655,1761937843160,-4376.1663188,0.00015,2]
[392771662,1761937845771,-517.903994,0.00015,2]
[392771663,1761937845795,-20486.73194767,0.00015,2]
[392771664,1761937845806,-22765.2,0.00015,2]
[392771724,1761937847234,-830.99528779,0.00015,2]
[392771725,1761937847245,-1537.18929,0.00015,2]
[392771726,1761937847256,-493.07632326,0.00015,2]
[392771727,1761937847279,-1290.30304423,0.00015,2]
[392771728,1761937847824,-253.52,0.00015,2]
[392771729,1761937847836,-661.87182045,0.00015,2]
[392771730,1761937847847,-607.29,0.00015,2]
[392771731,1761937847858,-22100.0,0.00015,2]
[392771732,1761937847882,-92223.82501964,0.00015,2]
[392771733,1761937847900,-6095.67151883,0.00015,2]
[392771734,1761937847915,-6216.31951664,0.00015,2]
[392771735,1761937847926,-421.265,0.00015,2]
[392771736,1761937847940,-4385.19999949,0.00015,2]
[392771737,1761937847951,-2324.29556668,0.00015,2]
[392771738,1761937847969,-9034.84186676,0.00015,2]
[392771739,1761937847980,-3267.8773159,0.00015,2]
[392771740,1761937848385,2500.0,0.00014662,3]
[392771741,1761937862646,731.09659775,0.00030137,120]
[392771742,1761937866994,2500.0,0.00014654,3]
[392771743,1761937885708,2500.0,0.00014645,3]
[392771744,1761937904349,2500.0,0.00014636,3]
[392771745,1761937923080,2500.0,0.00014627,3]
[392771746,1761937942081,2500.0,0.00014618,3]
[392771747,1761937960714,2500.0,0.0001461,3]
[392771748,1761937979355,2500.0,0.00014601,3]
[392771749,1761937998061,2500.0,0.00014592,3]
[392771750,1761938007705,763.97723747,0.0003013,120]
[392771751,1761938016733,2500.0,0.00014583,3]
[392771752,1761938025307,151.0,0.00014,2]
[392771760,1761938035429,2500.0,0.00014574,3]
[392771793,1761938054878,2500.0,0.00014566,3]
[392771855,1761938059468,159.88970171,0.0001499,5]
[392771864,1761938073556,2500.0,0.00014557,3]
[392771940,1761938092305,2500.0,0.00014548,3]
[392771941,1761938110964,2500.0,0.00014539,3]
[392771943,1761938129729,2500.0,0.0001453,3]
[392771944,1761938148505,2500.0,0.00014522,3]
[392771946,1761938167228,2500.0,0.00014513,3]
[392771947,1761938185985,2500.0,0.00014504,3]
[392771948,1761938204634,2428.47707606,0.00014495,3]
[392771949,1761938204664,71.52292394,0.00014495,3]
[392771950,1761938223341,2500.0,0.00014486,3]
[392771951,1761938242010,2500.0,0.00014478,3]
[392771952,1761938260997,2500.0,0.00014469,3]
[392771953,1761938279367,2500.0,0.0001446,3]
[392771954,1761938298024,2500.0,0.00014451,3]
[392771955,1761938316703,2500.0,0.00014442,3]
[392771956,1761938335681,2500.0,0.00014434,3]
[392771957,1761938353972,2500.0,0.00014425,3]
[392771958,1761938372621,2500.0,0.00014416,3]
[392771959,1761938391310,2500.0,0.00014407,3]
[392771960,1761938409959,2500.0,0.00014398,3]
[392771961,1761938428619,2500.0,0.0001439,3]
[392771962,1761938447332,2500.0,0.00014381,3]
[392771964,1761938465995,2500.0,0.00014372,3]
[392771965,1761938484673,2500.0,0.00014363,3]
[392771966,1761938504404,2500.0,0.00014354,3]
[392771967,1761938519801,714.8489565,0.00013942,2]
[392771968,1761938519826,1862.11,0.00013942,2]
[392771969,1761938519851,1862.11,0.00013942,2]
[392771970,1761938519876,1862.11,0.00013942,2]
[392771971,1761938520802,-3079.56970097,0.00013942,2]
[392771972,1761938520891,-3079.56970097,0.00013942,2]
[392771973,1761938522914,2500.0,0.00014346,3]
[392771974,1761938579912,150.0,0.00013915,120]
[392771977,1761938714686,150.28936814,0.00013488,2]
[392771978,1761938714762,150.0,0.00013488,2]
[392771979,1761938715335,150.0,0.00013488,2]
[392771980,1761938716135,150.0,0.00013488,2]
[392771981,1761938719948,150.93424219,0.00013488,2]
[392771982,1761938720002,150.0,0.00013488,2]
[392771983,1761938720683,150.0,0.00013488,2]
[392771984,1761938721659,150.0,0.00013488,2]
[392771985,1761938724023,150.0,0.00013488,2]
[392771986,1761938726835,150.0,0.00013488,2]
[392771987,1761938727470,150.0,0.00013488,2]
[392771988,1761938732838,150.0,0.00013488,2]
[392771989,1761938733162,150.0,0.00013488,2]
[392771990,1761938736350,150.0,0.00013488,2]
[392771991,1761938736654,150.0,0.00013488,2]
[392771992,1761938737478,150.0,0.00013488,2]
[392771993,1761938753615,11208.6437022,0.00015,10]
[392771994,1761938766621,-760.04,0.00013686,2]
[392771995,1761938766642,-44.84337289,0.00013737,2]
[392771998,1761938814692,2620.29272839,0.00015,14]
[392771999,1761938816526,-105.15662711,0.00013737,2]
[392772000,1761938816548,-150.0,0.00013862,2]
[392772001,1761938816570,-150.0,0.00013915,2]
[392772002,1761938816592,-222.58167854,0.0001392,2]
[392772003,1761938816615,-300.0,0.0001394,2]
[392772004,1761938816636,-1200.0,0.00013941,2]
[392772005,1761938816659,-300.0,0.00013941,2]
[392772006,1761938816682,-1200.0,0.00013941,2]